[Event "Titled Tuesday Blitz November 15 Late 2022"]
[White "Mikhalsky, Vladimir"]
[Black "Clawitter, Craig"]
[WhiteFideId "14144352"]
[BlackFideId "2023105"]
[WhiteElo "2271"]
[BlackElo "2235"]
[Result "0-1"]
[Round "06"]
[TimeControl "180+1"]
[Date "2022.11.16"]
[WhiteClock "0:00:08"]
[BlackClock "0:00:16"]

1. e4 {[%clk 0:03:00]}  e6 {[%clk 0:02:54]} 2. d4 {[%clk 0:02:59]}  d5 {[%clk 0:02:54]} 3. e5 {[%clk 0:02:59]}  c5 {[%clk 0:02:54]} 4. Qg4 {[%clk 0:03:00]}  Nc6 {[%clk 0:02:50]} 5. Nf3 {[%clk 0:02:59]}  cxd4 {[%clk 0:02:51]} 6. Bd3 {[%clk 0:02:59]}  Qc7 {[%clk 0:02:51]} 7. Bf4 {[%clk 0:02:43]}  Nge7 {[%clk 0:02:50]} 8. O-O {[%clk 0:02:42]}  Ng6 {[%clk 0:02:49]} 9. Re1 {[%clk 0:02:26]}  Nxf4 {[%clk 0:02:44]} 10. Qxf4 {[%clk 0:02:26]}  f6 {[%clk 0:02:40]} 11. Nbd2 {[%clk 0:02:01]}  Nxe5 {[%clk 0:02:31]} 12. Nxe5 {[%clk 0:02:00]}  fxe5 {[%clk 0:02:30]} 13. Qxe5 {[%clk 0:01:58]}  Qxe5 {[%clk 0:02:26]} 14. Rxe5 {[%clk 0:01:58]}  Bd6 {[%clk 0:02:26]} 15. Rh5 {[%clk 0:01:58]}  Kf7 {[%clk 0:01:36]} 16. Bxh7 {[%clk 0:01:52]}  Bd7 {[%clk 0:01:34]} 17. Nf3 {[%clk 0:01:07]}  g6 {[%clk 0:01:34]} 18. Rh6 {[%clk 0:00:30]}  Kg7 {[%clk 0:01:21]} 19. Rxg6+ {[%clk 0:00:30]}  Kxh7 {[%clk 0:01:21]} 20. Rf6 {[%clk 0:00:30]}  Rhg8 {[%clk 0:01:05]} 21. Re1 {[%clk 0:00:27]}  Raf8 {[%clk 0:01:04]} 22. Rxf8 {[%clk 0:00:23]}  Bxf8 {[%clk 0:00:59]} 23. Nxd4 {[%clk 0:00:22]}  Bg7 {[%clk 0:00:51]} 24. c3 {[%clk 0:00:22]}  Bxd4 {[%clk 0:00:47]} 25. cxd4 {[%clk 0:00:21]}  Rc8 {[%clk 0:00:45]} 26. h4 {[%clk 0:00:17]}  Rc2 {[%clk 0:00:45]} 27. Re3 {[%clk 0:00:17]}  Rxb2 {[%clk 0:00:43]} 28. Ra3 {[%clk 0:00:17]}  a6 {[%clk 0:00:40]} 29. g4 {[%clk 0:00:13]}  e5 {[%clk 0:00:34]} 30. dxe5 {[%clk 0:00:12]}  Bxg4 {[%clk 0:00:34]} 31. Kg2 {[%clk 0:00:11]}  Be6 {[%clk 0:00:30]} 32. Kg3 {[%clk 0:00:11]}  d4 {[%clk 0:00:30]} 33. Ra4 {[%clk 0:00:10]}  d3 {[%clk 0:00:25]} 34. Rd4 {[%clk 0:00:10]}  d2 {[%clk 0:00:24]} 35. f4 {[%clk 0:00:10]}  Bxa2 {[%clk 0:00:21]} 36. f5 {[%clk 0:00:10]}  Bb3 {[%clk 0:00:18]} 37. e6 {[%clk 0:00:09]}  d1=Q {[%clk 0:00:18]} 38. Rxd1 {[%clk 0:00:08]}  Bxd1 {[%clk 0:00:18]} 39. f6 {[%clk 0:00:08]}  Kg6 {[%clk 0:00:16]} 0-1


[Site "https://www.chess.com"]

[Event "Titled Tuesday Blitz November 15 Late 2022"]
[White "Mirzoev, Azer"]
[Black "Kaufman, Raymond"]
[WhiteFideId "13400304"]
[BlackFideId "2015056"]
[WhiteElo "2525"]
[BlackElo "2321"]
[Result "1-0"]
[Round "06"]
[TimeControl "180+1"]
[Date "2022.11.16"]
[WhiteClock "0:01:34"]
[BlackClock "0:01:14"]

1. e4 {[%clk 0:02:59]}  e5 {[%clk 0:02:58]} 2. Nc3 {[%clk 0:02:59]}  Nf6 {[%clk 0:02:58]} 3. Bc4 {[%clk 0:03:00]}  Nc6 {[%clk 0:02:52]} 4. d3 {[%clk 0:02:59]}  Na5 {[%clk 0:02:52]} 5. Qf3 {[%clk 0:02:55]}  c6 {[%clk 0:02:44]} 6. Nge2 {[%clk 0:02:54]}  Be7 {[%clk 0:02:44]} 7. Ng3 {[%clk 0:02:49]}  d6 {[%clk 0:02:35]} 8. h3 {[%clk 0:02:43]}  Nxc4 {[%clk 0:02:34]} 9. dxc4 {[%clk 0:02:43]}  Be6 {[%clk 0:02:35]} 10. b3 {[%clk 0:02:43]}  g6 {[%clk 0:02:30]} 11. a4 {[%clk 0:02:41]}  O-O {[%clk 0:02:30]} 12. O-O {[%clk 0:02:39]}  a5 {[%clk 0:02:30]} 13. Rd1 {[%clk 0:02:38]}  Qc7 {[%clk 0:02:30]} 14. Ba3 {[%clk 0:02:36]}  Rfd8 {[%clk 0:02:26]} 15. Rd2 {[%clk 0:02:34]}  h5 {[%clk 0:02:25]} 16. Rad1 {[%clk 0:02:31]}  h4 {[%clk 0:02:25]} 17. Nf1 {[%clk 0:02:14]}  Nh5 {[%clk 0:02:25]} 18. Ne3 {[%clk 0:02:13]}  Nf4 {[%clk 0:02:23]} 19. Ne2 {[%clk 0:02:05]}  Nxe2+ {[%clk 0:02:21]} 20. Qxe2 {[%clk 0:02:04]}  b6 {[%clk 0:02:14]} 21. Nf1 {[%clk 0:01:59]}  Rd7 {[%clk 0:02:11]} 22. Nh2 {[%clk 0:01:58]}  Rad8 {[%clk 0:02:11]} 23. Nf3 {[%clk 0:01:58]}  Kg7 {[%clk 0:02:09]} 24. Qe3 {[%clk 0:01:56]}  Rh8 {[%clk 0:02:02]} 25. Bb2 {[%clk 0:01:45]}  f6 {[%clk 0:01:56]} 26. Ne1 {[%clk 0:01:42]}  Rhd8 {[%clk 0:01:54]} 27. f4 {[%clk 0:01:41]}  Bf7 {[%clk 0:01:23]} 28. Nf3 {[%clk 0:01:39]}  exf4 {[%clk 0:01:21]} 29. Qxf4 {[%clk 0:01:38]}  Be6 {[%clk 0:01:14]} 30. Qxh4 {[%clk 0:01:34]} 1-0


[Site "https://www.chess.com"]

[Event "Titled Tuesday Blitz November 15 Late 2022"]
[White "Nugumanov, Bakhtiyar"]
[Black "Gurevich, Dmitry"]
[WhiteFideId "13701797"]
[BlackFideId "2000407"]
[WhiteElo "2287"]
[BlackElo "2506"]
[Result "0-1"]
[Round "06"]
[TimeControl "180+1"]
[Date "2022.11.16"]
[WhiteClock "0:00:01"]
[BlackClock "0:01:23"]

1. e4 {[%clk 0:03:00]}  c5 {[%clk 0:02:59]} 2. Nf3 {[%clk 0:03:00]}  d6 {[%clk 0:03:00]} 3. d4 {[%clk 0:03:00]}  cxd4 {[%clk 0:03:00]} 4. Nxd4 {[%clk 0:03:01]}  Nf6 {[%clk 0:03:00]} 5. Nc3 {[%clk 0:03:02]}  Nc6 {[%clk 0:03:00]} 6. Bg5 {[%clk 0:03:02]}  e6 {[%clk 0:03:00]} 7. Bb5 {[%clk 0:03:00]}  Bd7 {[%clk 0:02:58]} 8. Qd3 {[%clk 0:03:01]}  Be7 {[%clk 0:02:58]} 9. O-O-O {[%clk 0:03:00]}  O-O {[%clk 0:02:57]} 10. Bxc6 {[%clk 0:02:57]}  bxc6 {[%clk 0:02:56]} 11. Nb3 {[%clk 0:02:57]}  d5 {[%clk 0:02:53]} 12. e5 {[%clk 0:02:57]}  Ne8 {[%clk 0:02:31]} 13. Bxe7 {[%clk 0:02:57]}  Qxe7 {[%clk 0:02:30]} 14. Qd4 {[%clk 0:02:57]}  Nc7 {[%clk 0:02:26]} 15. Ne4 {[%clk 0:02:19]}  dxe4 {[%clk 0:02:09]} 16. Qxd7 {[%clk 0:02:19]}  Qg5+ {[%clk 0:02:09]} 17. Kb1 {[%clk 0:02:02]}  Qxe5 {[%clk 0:02:08]} 18. Qxc6 {[%clk 0:02:01]}  Nd5 {[%clk 0:02:07]} 19. Qc5 {[%clk 0:01:53]}  Rfc8 {[%clk 0:02:02]} 20. Qd4 {[%clk 0:01:53]}  Qf5 {[%clk 0:01:54]} 21. Rd2 {[%clk 0:01:44]}  a5 {[%clk 0:01:52]} 22. Nc5 {[%clk 0:00:35]}  Rab8 {[%clk 0:01:47]} 23. Ka1 {[%clk 0:00:30]}  Nb4 {[%clk 0:01:40]} 24. c3 {[%clk 0:00:17]}  Qxc5 {[%clk 0:01:34]} 25. Qxc5 {[%clk 0:00:15]}  Rxc5 {[%clk 0:01:32]} 26. cxb4 {[%clk 0:00:16]}  axb4 {[%clk 0:01:32]} 27. Rhd1 {[%clk 0:00:16]}  f5 {[%clk 0:01:31]} 28. Kb1 {[%clk 0:00:09]}  Kf7 {[%clk 0:01:30]} 29. Rd7+ {[%clk 0:00:08]}  Kf6 {[%clk 0:01:30]} 30. Ra7 {[%clk 0:00:08]}  b3 {[%clk 0:01:24]} 31. axb3 {[%clk 0:00:01]}  Rxb3 {[%clk 0:01:23]} 0-1


[Site "https://www.chess.com"]

[Event "Titled Tuesday Blitz November 15 Late 2022"]
[White "Papayan, Oleg"]
[Black "Thiel, Thomas"]
[WhiteFideId "4193911"]
[BlackFideId "4615964"]
[WhiteElo "2153"]
[BlackElo "2237"]
[Result "1-0"]
[Round "06"]
[TimeControl "180+1"]
[Date "2022.11.16"]
[WhiteClock "0:00:13"]
[BlackClock "0:00:01"]

1. e4 {[%clk 0:02:54]}  d5 {[%clk 0:02:59]} 2. exd5 {[%clk 0:02:54]}  Nf6 {[%clk 0:02:59]} 3. d4 {[%clk 0:02:53]}  Nxd5 {[%clk 0:02:59]} 4. c4 {[%clk 0:02:53]}  Nb6 {[%clk 0:02:57]} 5. Nf3 {[%clk 0:02:51]}  g6 {[%clk 0:02:56]} 6. Nc3 {[%clk 0:02:49]}  Bg7 {[%clk 0:02:56]} 7. Be3 {[%clk 0:02:46]}  O-O {[%clk 0:02:54]} 8. Qd2 {[%clk 0:02:47]}  Nc6 {[%clk 0:02:51]} 9. O-O-O {[%clk 0:02:33]}  Bg4 {[%clk 0:02:47]} 10. Be2 {[%clk 0:02:07]}  Bxf3 {[%clk 0:02:42]} 11. gxf3 {[%clk 0:02:07]}  e5 {[%clk 0:02:40]} 12. c5 {[%clk 0:01:41]}  exd4 {[%clk 0:02:19]} 13. cxb6 {[%clk 0:01:42]}  dxe3 {[%clk 0:01:50]} 14. Qxd8 {[%clk 0:01:24]}  Rfxd8 {[%clk 0:01:48]} 15. Rxd8+ {[%clk 0:01:23]}  Rxd8 {[%clk 0:01:47]} 16. bxc7 {[%clk 0:01:23]}  Rc8 {[%clk 0:01:46]} 17. fxe3 {[%clk 0:01:23]}  Bxc3 {[%clk 0:01:41]} 18. bxc3 {[%clk 0:01:22]}  Rxc7 {[%clk 0:01:41]} 19. f4 {[%clk 0:01:17]}  Ne7 {[%clk 0:01:31]} 20. Kd2 {[%clk 0:01:08]}  Nd5 {[%clk 0:01:29]} 21. Bf3 {[%clk 0:01:02]}  Nb6 {[%clk 0:01:18]} 22. Rb1 {[%clk 0:00:47]}  Nc4+ {[%clk 0:01:16]} 23. Kd3 {[%clk 0:00:42]}  b6 {[%clk 0:01:16]} 24. Rb4 {[%clk 0:00:40]}  Na5 {[%clk 0:01:15]} 25. c4 {[%clk 0:00:40]}  Nc6 {[%clk 0:01:11]} 26. Rb5 {[%clk 0:00:36]}  Ne7 {[%clk 0:00:59]} 27. Bd5 {[%clk 0:00:32]}  Kf8 {[%clk 0:00:55]} 28. e4 {[%clk 0:00:31]}  Ke8 {[%clk 0:00:52]} 29. Kd4 {[%clk 0:00:31]}  f6 {[%clk 0:00:51]} 30. a4 {[%clk 0:00:31]}  Kd7 {[%clk 0:00:50]} 31. a5 {[%clk 0:00:31]}  bxa5 {[%clk 0:00:48]} 32. Rxa5 {[%clk 0:00:32]}  Nc6+ {[%clk 0:00:40]} 33. Bxc6+ {[%clk 0:00:29]}  Kxc6 {[%clk 0:00:41]} 34. Ra6+ {[%clk 0:00:29]}  Kb7 {[%clk 0:00:39]} 35. Rxf6 {[%clk 0:00:30]}  a5 {[%clk 0:00:38]} 36. c5 {[%clk 0:00:26]}  Rd7+ {[%clk 0:00:33]} 37. Kc4 {[%clk 0:00:23]}  Rd2 {[%clk 0:00:30]} 38. Rf7+ {[%clk 0:00:22]}  Kc6 {[%clk 0:00:29]} 39. Rf6+ {[%clk 0:00:17]}  Kc7 {[%clk 0:00:27]} 40. Ra6 {[%clk 0:00:15]}  Rxh2 {[%clk 0:00:24]} 41. Kd5 {[%clk 0:00:15]}  Rd2+ {[%clk 0:00:21]} 42. Ke6 {[%clk 0:00:15]}  Rd4 {[%clk 0:00:17]} 43. Ke5 {[%clk 0:00:16]}  Rc4 {[%clk 0:00:16]} 44. Kd5 {[%clk 0:00:16]}  Ra4 {[%clk 0:00:14]} 45. Ra7+ {[%clk 0:00:16]}  Kc8 {[%clk 0:00:13]} 46. Rxh7 {[%clk 0:00:17]}  Ra1 {[%clk 0:00:12]} 47. Kc6 {[%clk 0:00:16]}  Kb8 {[%clk 0:00:11]} 48. e5 {[%clk 0:00:14]}  a4 {[%clk 0:00:10]} 49. e6 {[%clk 0:00:14]}  Re1 {[%clk 0:00:06]} 50. e7 {[%clk 0:00:12]}  a3 {[%clk 0:00:04]} 51. Rh8+ {[%clk 0:00:11]}  Ka7 {[%clk 0:00:04]} 52. e8=Q {[%clk 0:00:12]}  Rxe8 {[%clk 0:00:01]} 53. Rxe8 {[%clk 0:00:13]} 1-0


[Site "https://www.chess.com"]

[Event "Titled Tuesday Blitz November 15 Late 2022"]
[White "Pichot, Alan"]
[Black "Wadsworth, Matthew J"]
[WhiteFideId "110973"]
[BlackFideId "415804"]
[WhiteElo "2560"]
[BlackElo "2367"]
[Result "1-0"]
[Round "06"]
[TimeControl "180+1"]
[Date "2022.11.16"]
[WhiteClock "0:02:05"]
[BlackClock "0:00:02"]

1. e4 {[%clk 0:03:00]}  e6 {[%clk 0:02:59]} 2. d4 {[%clk 0:03:00]}  d5 {[%clk 0:02:59]} 3. Bd3 {[%clk 0:02:59]}  dxe4 {[%clk 0:02:58]} 4. Bxe4 {[%clk 0:02:55]}  Nf6 {[%clk 0:02:58]} 5. Bf3 {[%clk 0:02:55]}  c5 {[%clk 0:02:57]} 6. Ne2 {[%clk 0:02:56]}  Nc6 {[%clk 0:02:54]} 7. Be3 {[%clk 0:02:53]}  cxd4 {[%clk 0:02:38]} 8. Nxd4 {[%clk 0:02:53]}  Ne5 {[%clk 0:02:36]} 9. O-O {[%clk 0:02:53]}  Nxf3+ {[%clk 0:02:33]} 10. Qxf3 {[%clk 0:02:52]}  Qd5 {[%clk 0:02:31]} 11. Qe2 {[%clk 0:02:50]}  Bd7 {[%clk 0:02:20]} 12. Nc3 {[%clk 0:02:50]}  Qh5 {[%clk 0:02:14]} 13. Qxh5 {[%clk 0:02:48]}  Nxh5 {[%clk 0:02:15]} 14. Ndb5 {[%clk 0:02:48]}  Bxb5 {[%clk 0:01:16]} 15. Nxb5 {[%clk 0:02:49]}  O-O-O {[%clk 0:01:10]} 16. Nxa7+ {[%clk 0:02:45]}  Kb8 {[%clk 0:01:09]} 17. Nb5 {[%clk 0:02:46]}  e5 {[%clk 0:00:49]} 18. a4 {[%clk 0:02:45]}  f5 {[%clk 0:00:40]} 19. a5 {[%clk 0:02:45]}  f4 {[%clk 0:00:31]} 20. Bb6 {[%clk 0:02:46]}  Rd5 {[%clk 0:00:30]} 21. c4 {[%clk 0:02:44]}  Rd7 {[%clk 0:00:22]} 22. Rfd1 {[%clk 0:02:43]}  Rxd1+ {[%clk 0:00:14]} 23. Rxd1 {[%clk 0:02:44]}  Bb4 {[%clk 0:00:14]} 24. Rd7 {[%clk 0:02:43]}  Nf6 {[%clk 0:00:12]} 25. Rxg7 {[%clk 0:02:42]}  Rc8 {[%clk 0:00:10]} 26. b3 {[%clk 0:02:38]}  Ne4 {[%clk 0:00:07]} 27. Rxh7 {[%clk 0:02:14]}  Bc5 {[%clk 0:00:07]} 28. Kf1 {[%clk 0:02:09]}  Bxb6 {[%clk 0:00:03]} 29. axb6 {[%clk 0:02:09]}  Nd2+ {[%clk 0:00:04]} 30. Ke2 {[%clk 0:02:09]}  Nxb3 {[%clk 0:00:04]} 31. Nd6 {[%clk 0:02:10]}  Nd4+ {[%clk 0:00:04]} 32. Kd3 {[%clk 0:02:10]}  Rd8 {[%clk 0:00:04]} 33. c5 {[%clk 0:02:07]}  Ne6 {[%clk 0:00:03]} 34. Kc4 {[%clk 0:02:08]}  e4 {[%clk 0:00:02]} 35. Rxb7+ {[%clk 0:02:07]}  Ka8 {[%clk 0:00:02]} 36. Re7 {[%clk 0:02:05]} 1-0


[Site "https://www.chess.com"]

[Event "Titled Tuesday Blitz November 15 Late 2022"]
[White "Pranav, V"]
[Black "Saydaliev, Saidakbar"]
[WhiteFideId "25060783"]
[BlackFideId "14203693"]
[WhiteElo "2430"]
[BlackElo "2276"]
[Result "1-0"]
[Round "06"]
[TimeControl "180+1"]
[Date "2022.11.15"]
[WhiteClock "0:00:03"]
[BlackClock "0:00:09"]

1. e4 {[%clk 0:03:00]}  e5 {[%clk 0:02:57]} 2. Nf3 {[%clk 0:03:01]}  Nc6 {[%clk 0:02:57]} 3. Bc4 {[%clk 0:03:01]}  Nf6 {[%clk 0:02:57]} 4. Ng5 {[%clk 0:03:01]}  d5 {[%clk 0:02:57]} 5. exd5 {[%clk 0:03:02]}  Na5 {[%clk 0:02:58]} 6. Bb5+ {[%clk 0:03:02]}  c6 {[%clk 0:02:58]} 7. dxc6 {[%clk 0:03:03]}  bxc6 {[%clk 0:02:59]} 8. Bd3 {[%clk 0:03:04]}  h6 {[%clk 0:02:53]} 9. Ne4 {[%clk 0:03:04]}  Nd5 {[%clk 0:02:52]} 10. O-O {[%clk 0:03:04]}  Nf4 {[%clk 0:02:47]} 11. Be2 {[%clk 0:03:04]}  f5 {[%clk 0:02:21]} 12. Ng3 {[%clk 0:03:00]}  Bd6 {[%clk 0:02:17]} 13. d4 {[%clk 0:03:00]}  O-O {[%clk 0:02:10]} 14. dxe5 {[%clk 0:03:00]}  Bxe5 {[%clk 0:02:10]} 15. Qxd8 {[%clk 0:03:00]}  Rxd8 {[%clk 0:02:11]} 16. Bxf4 {[%clk 0:03:00]}  Bxf4 {[%clk 0:02:11]} 17. Nc3 {[%clk 0:03:01]}  Rb8 {[%clk 0:02:10]} 18. Rab1 {[%clk 0:02:55]}  Be6 {[%clk 0:02:09]} 19. Bd3 {[%clk 0:02:47]}  g6 {[%clk 0:02:08]} 20. b3 {[%clk 0:02:35]}  c5 {[%clk 0:02:01]} 21. Rfd1 {[%clk 0:02:22]}  Be5 {[%clk 0:01:52]} 22. Na4 {[%clk 0:02:17]}  c4 {[%clk 0:01:51]} 23. Bf1 {[%clk 0:02:16]}  cxb3 {[%clk 0:01:49]} 24. axb3 {[%clk 0:02:15]}  Rxd1 {[%clk 0:01:38]} 25. Rxd1 {[%clk 0:02:16]}  Bf7 {[%clk 0:00:58]} 26. Rd7 {[%clk 0:01:41]}  Nc6 {[%clk 0:00:52]} 27. Nc5 {[%clk 0:01:34]}  Nd4 {[%clk 0:00:45]} 28. Rxa7 {[%clk 0:01:14]}  Nxc2 {[%clk 0:00:45]} 29. Nd7 {[%clk 0:01:02]}  Bxg3 {[%clk 0:00:20]} 30. hxg3 {[%clk 0:00:57]}  Rxb3 {[%clk 0:00:18]} 31. Ne5 {[%clk 0:00:49]}  Be6 {[%clk 0:00:09]} 32. Ra6 {[%clk 0:00:47]}  Nd4 {[%clk 0:00:09]} 33. Rd6 {[%clk 0:00:47]}  Rb4 {[%clk 0:00:09]} 34. Nxg6 {[%clk 0:00:44]}  Bf7 {[%clk 0:00:09]} 35. Ne5 {[%clk 0:00:41]}  Be6 {[%clk 0:00:08]} 36. Bd3 {[%clk 0:00:40]}  Kf8 {[%clk 0:00:08]} 37. f4 {[%clk 0:00:36]}  Bg8 {[%clk 0:00:04]} 38. Rd8+ {[%clk 0:00:33]}  Kg7 {[%clk 0:00:05]} 39. Rd7+ {[%clk 0:00:34]}  Kf8 {[%clk 0:00:05]} 40. Kf2 {[%clk 0:00:32]}  Be6 {[%clk 0:00:05]} 41. Rd6 {[%clk 0:00:31]}  Bg8 {[%clk 0:00:05]} 42. Rxh6 {[%clk 0:00:31]}  Rb2+ {[%clk 0:00:05]} 43. Ke3 {[%clk 0:00:30]}  Nb3 {[%clk 0:00:05]} 44. Bxf5 {[%clk 0:00:25]}  Rxg2 {[%clk 0:00:05]} 45. Be4 {[%clk 0:00:26]}  Rxg3+ {[%clk 0:00:05]} 46. Kf2 {[%clk 0:00:25]}  Rc3 {[%clk 0:00:04]} 47. Rb6 {[%clk 0:00:24]}  Nd4 {[%clk 0:00:04]} 48. Rb7 {[%clk 0:00:23]}  Ne6 {[%clk 0:00:04]} 49. Nd7+ {[%clk 0:00:20]}  Ke7 {[%clk 0:00:03]} 50. Ne5+ {[%clk 0:00:19]}  Kd6 {[%clk 0:00:03]} 51. Rb8 {[%clk 0:00:15]}  Nxf4 {[%clk 0:00:03]} 52. Nf3 {[%clk 0:00:15]}  Be6 {[%clk 0:00:03]} 53. Rb6+ {[%clk 0:00:14]}  Ke7 {[%clk 0:00:03]} 54. Nd4 {[%clk 0:00:12]}  Rc4 {[%clk 0:00:03]} 55. Nc6+ {[%clk 0:00:09]}  Kd6 {[%clk 0:00:03]} 56. Bf3 {[%clk 0:00:06]}  Kc7 {[%clk 0:00:03]} 57. Ra6 {[%clk 0:00:04]}  Nd3+ {[%clk 0:00:03]} 58. Ke3 {[%clk 0:00:04]}  Nc5 {[%clk 0:00:04]} 59. Ra7+ {[%clk 0:00:04]}  Kd6 {[%clk 0:00:05]} 60. Nd4 {[%clk 0:00:04]}  Rc3+ {[%clk 0:00:06]} 61. Kf2 {[%clk 0:00:03]}  Rd3 {[%clk 0:00:06]} 62. Nb5+ {[%clk 0:00:03]}  Ke5 {[%clk 0:00:06]} 63. Rc7 {[%clk 0:00:03]}  Kf4 {[%clk 0:00:06]} 64. Be2 {[%clk 0:00:03]}  Rd5 {[%clk 0:00:05]} 65. Nc3 {[%clk 0:00:03]}  Re5 {[%clk 0:00:06]} 66. Ke1 {[%clk 0:00:02]}  Bc4 {[%clk 0:00:05]} 67. Kd2 {[%clk 0:00:02]}  Bxe2 {[%clk 0:00:05]} 68. Nxe2+ {[%clk 0:00:03]}  Kf5 {[%clk 0:00:06]} 69. Nd4+ {[%clk 0:00:03]}  Kg5 {[%clk 0:00:07]} 70. Nf3+ {[%clk 0:00:03]}  Kf4 {[%clk 0:00:08]} 71. Nxe5 {[%clk 0:00:03]}  Ne4+ {[%clk 0:00:08]} 72. Kd3 {[%clk 0:00:03]}  Kxe5 {[%clk 0:00:09]} 73. Re7+ {[%clk 0:00:03]} 1-0


[Site "https://www.chess.com"]

[Event "Titled Tuesday Blitz November 15 Late 2022"]
[White "Prithu Gupta"]
[Black "Milosevic, Milos"]
[WhiteFideId "46618546"]
[BlackFideId "964875"]
[WhiteElo "2344"]
[BlackElo "2321"]
[Result "1-0"]
[Round "06"]
[TimeControl "180+1"]
[Date "2022.11.16"]
[WhiteClock "0:01:43"]
[BlackClock "0:01:41"]

1. c4 {[%clk 0:03:00]}  Nf6 {[%clk 0:02:57]} 2. Nc3 {[%clk 0:03:01]}  g6 {[%clk 0:02:57]} 3. g3 {[%clk 0:03:01]}  Bg7 {[%clk 0:02:57]} 4. Bg2 {[%clk 0:03:01]}  O-O {[%clk 0:02:58]} 5. e4 {[%clk 0:03:01]}  d6 {[%clk 0:02:58]} 6. Nge2 {[%clk 0:03:02]}  e5 {[%clk 0:02:57]} 7. O-O {[%clk 0:03:02]}  Nc6 {[%clk 0:02:56]} 8. d3 {[%clk 0:03:02]}  Be6 {[%clk 0:02:55]} 9. a3 {[%clk 0:03:01]}  Qd7 {[%clk 0:02:55]} 10. b4 {[%clk 0:03:00]}  Nh5 {[%clk 0:02:47]} 11. Be3 {[%clk 0:02:57]}  f5 {[%clk 0:02:45]} 12. exf5 {[%clk 0:02:54]}  gxf5 {[%clk 0:02:43]} 13. f4 {[%clk 0:02:55]}  exf4 {[%clk 0:02:41]} 14. gxf4 {[%clk 0:02:54]}  Nf6 {[%clk 0:02:39]} 15. h3 {[%clk 0:02:49]}  d5 {[%clk 0:02:38]} 16. b5 {[%clk 0:02:36]}  Ne7 {[%clk 0:02:29]} 17. Nd4 {[%clk 0:02:35]}  dxc4 {[%clk 0:02:21]} 18. dxc4 {[%clk 0:02:33]}  Bxc4 {[%clk 0:02:19]} 19. Bxb7 {[%clk 0:02:32]}  Rad8 {[%clk 0:02:16]} 20. Rf2 {[%clk 0:02:27]}  Nfd5 {[%clk 0:02:14]} 21. Nxd5 {[%clk 0:02:15]}  Nxd5 {[%clk 0:02:15]} 22. Bxd5+ {[%clk 0:02:12]}  Qxd5 {[%clk 0:02:03]} 23. Rg2 {[%clk 0:02:06]}  Kh8 {[%clk 0:02:00]} 24. Rxg7 {[%clk 0:02:05]}  Kxg7 {[%clk 0:02:01]} 25. Kh2 {[%clk 0:01:57]}  Rf6 {[%clk 0:01:59]} 26. Qh5 {[%clk 0:01:54]}  Rg6 {[%clk 0:01:51]} 27. Nxf5+ {[%clk 0:01:44]}  Kg8 {[%clk 0:01:41]} 28. Ne7+ {[%clk 0:01:43]} 1-0


[Site "https://www.chess.com"]

[Event "Titled Tuesday Blitz November 15 Late 2022"]
[White "Pultinevicius, Paulius"]
[Black "Firouzja, Alireza"]
[WhiteFideId "12809390"]
[BlackFideId "12573981"]
[WhiteElo "2493"]
[BlackElo "2903"]
[Result "0-1"]
[Round "06"]
[TimeControl "180+1"]
[Date "2022.11.15"]
[WhiteClock "0:00:27"]
[BlackClock "0:01:42"]

1. d4 {[%clk 0:03:00]}  Nf6 {[%clk 0:02:58]} 2. c4 {[%clk 0:03:01]}  g6 {[%clk 0:02:58]} 3. Nc3 {[%clk 0:03:01]}  Bg7 {[%clk 0:02:59]} 4. e4 {[%clk 0:03:01]}  d6 {[%clk 0:02:59]} 5. Nf3 {[%clk 0:03:02]}  O-O {[%clk 0:03:00]} 6. Be2 {[%clk 0:03:02]}  e5 {[%clk 0:03:00]} 7. O-O {[%clk 0:03:03]}  Nc6 {[%clk 0:03:01]} 8. Be3 {[%clk 0:03:02]}  Ng4 {[%clk 0:03:00]} 9. Bg5 {[%clk 0:03:01]}  f6 {[%clk 0:03:00]} 10. Bh4 {[%clk 0:03:02]}  h5 {[%clk 0:03:01]} 11. dxe5 {[%clk 0:02:57]}  dxe5 {[%clk 0:02:59]} 12. h3 {[%clk 0:02:54]}  Nh6 {[%clk 0:02:49]} 13. Qb3 {[%clk 0:02:53]}  Qe8 {[%clk 0:02:36]} 14. Nd5 {[%clk 0:02:38]}  Rf7 {[%clk 0:02:33]} 15. Rfd1 {[%clk 0:02:32]}  Rb8 {[%clk 0:02:31]} 16. c5 {[%clk 0:02:12]}  Be6 {[%clk 0:02:30]} 17. Qa3 {[%clk 0:02:12]}  Kh8 {[%clk 0:02:28]} 18. Bc4 {[%clk 0:02:09]}  g5 {[%clk 0:02:23]} 19. Bxg5 {[%clk 0:01:49]}  fxg5 {[%clk 0:02:22]} 20. Nxg5 {[%clk 0:01:50]}  Nd4 {[%clk 0:02:23]} 21. Nxf7+ {[%clk 0:01:39]}  Qxf7 {[%clk 0:02:23]} 22. Rac1 {[%clk 0:01:09]}  Rf8 {[%clk 0:02:21]} 23. Rd2 {[%clk 0:01:04]}  Ng8 {[%clk 0:02:08]} 24. Ne3 {[%clk 0:00:59]}  Bh6 {[%clk 0:02:06]} 25. Bxe6 {[%clk 0:00:57]}  Qxe6 {[%clk 0:02:07]} 26. c6 {[%clk 0:00:50]}  bxc6 {[%clk 0:02:05]} 27. Rc5 {[%clk 0:00:45]}  Nf6 {[%clk 0:02:03]} 28. Nc4 {[%clk 0:00:40]}  Bxd2 {[%clk 0:01:51]} 29. Rxe5 {[%clk 0:00:40]}  Qf7 {[%clk 0:01:52]} 30. Nxd2 {[%clk 0:00:40]}  Nd7 {[%clk 0:01:51]} 31. Rxh5+ {[%clk 0:00:39]}  Qxh5 {[%clk 0:01:51]} 32. Qe7 {[%clk 0:00:37]}  Qd1+ {[%clk 0:01:46]} 33. Kh2 {[%clk 0:00:35]}  Qxd2 {[%clk 0:01:41]} 34. Qh4+ {[%clk 0:00:32]}  Kg7 {[%clk 0:01:42]} 35. Qg4+ {[%clk 0:00:33]}  Kf6 {[%clk 0:01:42]} 36. f4 {[%clk 0:00:27]}  Ke7 {[%clk 0:01:42]} 0-1


[Site "https://www.chess.com"]